[Event "FIDE WYCC Girls U18 2023"]
[Site "Montesilvano"]
[Date "2023.11.24"]
[Round "11.9"]
[White "Gasimova, Samra"]
[Black "Margadgua Erdenebayar"]
[Result "1/2-1/2"]
[ECO "D00"]
[WhiteElo "1860"]
[BlackElo "2013"]
[Annotator "NA RC"]
[PlyCount "80"]
[EventDate "2023.11.13"]
[EventType "swiss"]
[EventCountry "ITA"]
[SourceTitle "playchess.com"]
[Source "ChessBase"]
[SourceQuality "1"]
[TimeControl "40/5400+30:1800+30"]

1. d4 {[%emt 0:00:03]} d5 {[%emt 0:00:19]} 2. Nc3 {[%emt 0:00:04]} Nf6 {[%emt 0:00:34]} 3. Bf4 {[%emt 0:00:04]} e6 {[%emt 0:01:26]} 4. Nb5 {[%emt 0:00:11]} Na6 {[%emt 0:00:10]} 5. e3 {[%emt 0:00:06]} c6 {[%emt 0:02:29]} 6. Nc3 {[%emt 0:00:05]} Nc7 {[%emt 0:09:05]} 7. Nf3 {[%emt 0:03:15]} Be7 {[%emt 0:01:00]} 8. Ne5 {[%emt 0:01:25]} O-O {[%emt 0:08:05]} 9. Bd3 {[%emt 0:05:33]} Nce8 {[%emt 0:04:12]} 10. Qf3 {[%emt 0:06:37]} Nd7 {[%emt 0:04:05]} 11. Qh3 {[%emt 0:05:44]} g6 {[%emt 0:02:42]} 12. Ne2 {[%emt 0:05:40]} Nxe5 {[%emt 0:03:24]} 13. dxe5 {[%emt 0:00:21]} c5 {[%emt 0:01:13]} 14. c3 {[%emt 0:00:15]} f6 {[%emt 0:02:08]} 15. g4 {[%emt 0:04:55]} fxe5 {[%emt 0:03:40]} 16. Bxe5 {[%emt 0:00:02]} Bf6 {[%emt 0:00:44]} 17. Bxf6 {[%emt 0:05:09]} Qxf6 {[%emt 0:04:12]} 18. Qg2 {[%emt 0:01:34]} Qh4 {[%emt 0:04:34]} 19. g5 {[%emt 0:08:00]} Nd6 {[%emt 0:08:50]} 20. Nf4 {[%emt 0:10:38]} Bd7 {[%emt 0:06:43]} 21. Qg3 {[%emt 0:04:09]} Qxg3 {[%emt 0:00:43]} 22. hxg3 {[%emt 0:00:04]} Nf7 {[%emt 0:03:39]} 23. Nh3 {[%emt 0:02:03]} Ne5 {[%emt 0:00:40]} 24. Be2 {[%emt 0:02:24]} Bc6 {[%emt 0:00:30]} 25. f4 {[%emt 0:05:58]} d4 {[%emt 0:07:41]} 26. fxe5 {[%emt 0:12:30]} Bxh1 {[%emt 0:00:09]} 27. exd4 {[%emt 0:00:06]} cxd4 {[%emt 0:04:08]} 28. cxd4 {[%emt 0:00:05]} Rfd8 {[%emt 0:00:06]} 29. Kf2 {[%emt 0:00:56]} Bd5 {[%emt 0:00:49]} 30. Nf4 {[%emt 0:01:30]} Rac8 {[%emt 0:01:19]} 31. Bg4 {[%emt 0:03:43]} Kf7 {[%emt 0:03:49]} 32. Ke3 {[%emt 0:01:19]} Rc4 {[%emt 0:07:23]} 33. Rf1 {[%emt 0:02:15]} Ke7 {[%emt 0:00:13]} 34. Rf2 {[%emt 0:02:17]} Rb4 {[%emt 0:03:37]} 35. Rh2 {[%emt 0:03:21]} Rh8 {[%emt 0:01:57]} 36. b3 {[%emt 0:03:25]} Kf7 {[%emt 0:00:23]} 37. Rf2 {[%emt 0:00:10]} Ke7 {[%emt 0:00:07]} 38. Rh2 {[%emt 0:00:51]} Kf7 {[%emt 0:00:04]} 39. Rf2 {[%emt 0:01:07]} Ke7 {[%emt 0:00:01]} 40. Rh2 {[%emt 0:00:00]} Kf7 {[%emt 0:00:00]} 1/2-1/2

[Event "FIDE WYCC Girls U18 2023"]
[Site "Montesilvano"]
[Date "2023.11.24"]
[Round "11.10"]
[White "Barwinska, Ewa"]
[Black "O'Carroll, Om"]
[Result "1-0"]
[ECO "B52"]
[WhiteElo "1974"]
[BlackElo "1737"]
[Annotator "NA RC"]
[PlyCount "63"]
[EventDate "2023.11.13"]
[EventType "swiss"]
[EventCountry "ITA"]
[SourceTitle "playchess.com"]
[Source "ChessBase"]
[SourceQuality "1"]
[TimeControl "40/5400+30:1800+30"]

1. e4 {[%emt 0:00:03]} c5 {[%emt 0:00:05]} 2. Nf3 {[%emt 0:00:08]} d6 {[%emt 0:00:06]} 3. Bb5+ {[%emt 0:00:06]} Bd7 {[%emt 0:00:24]} 4. Bxd7+ {[%emt 0:00:11]} Nxd7 {[%emt 0:00:08]} 5. O-O {[%emt 0:01:31]} Ngf6 {[%emt 0:00:28]} 6. Qe2 {[%emt 0:00:27]} e6 {[%emt 0:00:35]} 7. c3 {[%emt 0:03:18]} Be7 {[%emt 0:00:31]} 8. d4 {[%emt 0:00:39]} O-O {[%emt 0:00:21]} 9. Rd1 {[%emt 0:06:13]} cxd4 {[%emt 0:10:29]} 10. cxd4 {[%emt 0:05:40]} d5 {[%emt 0:00:46]} 11. e5 {[%emt 0:01:09]} Ne4 {[%emt 0:04:22]} 12. Ne1 {[%emt 0:02:17]} h6 {[%emt 0:01:44]} 13. f3 {[%emt 0:01:45]} Ng5 {[%emt 0:00:17]} 14. Nc3 {[%emt 0:03:07]} Rc8 {[%emt 0:06:10]} 15. f4 {[%emt 0:05:31]} Nh7 {[%emt 0:01:50]} 16. f5 {[%emt 0:04:17]} Bg5 {[%emt 0:11:27]} 17. Nf3 {[%emt 0:09:35]} Bxc1 {[%emt 0:09:51]} 18. Raxc1 {[%emt 0:00:02]} Ng5 {[%emt 0:09:48]} 19. Rf1 {[%emt 0:04:17]} Qb6 {[%emt 0:12:24]} 20. Rcd1 {[%emt 0:04:19]} Rc4 {[%emt 0:00:46]} 21. Qd2 {[%emt 0:07:38]} Nxf3+ {[%emt 0:01:35]} 22. Rxf3 {[%emt 0:01:42]} Nxe5 {[%emt 0:04:22]} 23. Rg3 {[%emt 0:02:36]} Kh8 {[%emt 0:11:58]} 24. f6 {[%emt 0:07:09]} Ng6 {[%emt 0:00:59]} 25. Rh3 {[%emt 0:00:53]} Rd8 {[%emt 0:03:43]} 26. fxg7+ {[%emt 0:00:43]} Kxg7 {[%emt 0:00:26]} 27. Qxh6+ {[%emt 0:00:07]} Kg8 {[%emt 0:00:08]} 28. Qh7+ {[%emt 0:01:41]} Kf8 {[%emt 0:00:07]} 29. Rf3 {[%emt 0:00:34]} Ne5 {[%emt 0:01:16]} 30. Qh8+ {[%emt 0:00:22]} Ke7 {[%emt 0:00:30]} 31. Qxe5 {[%emt 0:00:11]} Qxb2 {[%emt 0:01:29]} 32. Rb1 {[%emt 0:00:59]} 1-0

[Event "FIDE WYCC Girls U18 2023"]
[Site "Montesilvano"]
[Date "2023.11.24"]
[Round "11.11"]
[White "Mungunzul, Bat-Erdene"]
[Black "Sosovickova, Jana"]
[Result "1-0"]
[ECO "E32"]
[WhiteElo "2111"]
[BlackElo "2013"]
[Annotator "NA RC"]
[PlyCount "83"]
[EventDate "2023.11.13"]
[EventType "swiss"]
[EventCountry "ITA"]
[SourceTitle "playchess.com"]
[Source "ChessBase"]
[SourceQuality "1"]
[TimeControl "40/5400+30:1800+30"]

1. d4 {[%emt 0:00:02]} Nf6 {[%emt 0:00:04]} 2. c4 {[%emt 0:00:06]} e6 {[%emt 0:00:05]} 3. Nc3 {[%emt 0:00:07]} Bb4 {[%emt 0:00:11]} 4. Qc2 {[%emt 0:00:11]} O-O {[%emt 0:00:05]} 5. Bg5 $11 {[%emt 0:00:10]} c5 {[%emt 0:01:22]} 6. dxc5 {[%emt 0:01:48]} Na6 {[%emt 0:00:34]} 7. a3 {[%emt 0:10:49]} Bxc3+ {[%emt 0:00:16]} 8. Qxc3 {[%emt 0:00:10]} Nxc5 {[%emt 0:00:26]} 9. e3 {[%emt 0:04:48]} Nce4 {[%emt 0:17:10]} 10. Bxf6 {[%emt 0:01:16]} Qxf6 {[%emt 0:00:21]} 11. Qc2 {[%emt 0:07:54]} d5 {[%emt 0:06:35]} 12. Rd1 {[%emt 0:08:23]} Rd8 {[%emt 0:07:34]} 13. Bd3 {[%emt 0:07:50]} Bd7 {[%emt 0:04:16]} 14. Bxe4 {[%emt 0:01:43]} dxe4 {[%emt 0:00:10]} 15. Ne2 {[%emt 0:00:16]} e5 {[%emt 0:04:43]} 16. Ng3 {[%emt 0:06:53]} Qc6 {[%emt 0:08:30]} 17. Qxe4 {[%emt 0:04:03]} Qxe4 {[%emt 0:02:22]} 18. Nxe4 {[%emt 0:00:18]} Bc6 {[%emt 0:00:09]} 19. f3 {[%emt 0:01:31]} Bxe4 {[%emt 0:03:43]} 20. fxe4 {[%emt 0:00:29]} Rxd1+ {[%emt 0:01:20]} 21. Kxd1 {[%emt 0:00:09]} Rc8 {[%emt 0:01:19]} 22. b3 {[%emt 0:00:37]} b5 {[%emt 0:04:30]} 23. Ke2 {[%emt 0:00:26]} bxc4 {[%emt 0:00:22]} 24. Rc1 {[%emt 0:00:09]} Kf8 {[%emt 0:04:08]} 25. Rxc4 {[%emt 0:00:39]} Rb8 {[%emt 0:01:20]} 26. b4 {[%emt 0:00:21]} Rb7 {[%emt 0:01:05]} 27. a4 {[%emt 0:00:55]} Ke7 {[%emt 0:04:23]} 28. Kd3 {[%emt 0:01:02]} Kd7 {[%emt 0:04:02]} 29. Kc3 {[%emt 0:06:51]} Rb6 {[%emt 0:02:54]} 30. Rc5 {[%emt 0:00:11]} f6 {[%emt 0:04:08]} 31. b5 {[%emt 0:02:04]} Rb7 {[%emt 0:05:37]} 32. a5 {[%emt 0:01:35]} Rb8 {[%emt 0:01:03]} 33. Kc4 {[%emt 0:00:31]} Rb7 {[%emt 0:05:38]} 34. Rc6 {[%emt 0:00:32]} Rb8 {[%emt 0:02:13]} 35. Kc5 {[%emt 0:00:57]} Rb7 {[%emt 0:00:15]} 36. b6 {[%emt 0:00:59]} h6 {[%emt 0:03:10]} 37. Rd6+ {[%emt 0:00:51]} Kc8 {[%emt 0:01:14]} 38. a6 {[%emt 0:00:55]} axb6+ {[%emt 0:00:23]} 39. Kc6 {[%emt 0:00:22]} Ra7 {[%emt 0:01:42]} 40. Kxb6 {[%emt 0:00:00]} Re7 {[%emt 0:00:00]} 41. a7 {[%emt 0:00:33]} Rb7+ {[%emt 0:00:44]} 42. Ka6 {[%emt 0:00:06]} 1-0

[Event "FIDE WYCC Girls U18 2023"]
[Site "Montesilvano"]
[Date "2023.11.24"]
[Round "11.12"]
[White "Wan, Qian"]
[Black "Cornileau, Juliette"]
[Result "1/2-1/2"]
[ECO "D02"]
[WhiteElo "1945"]
[BlackElo "2089"]
[Annotator "NA RC"]
[PlyCount "98"]
[EventDate "2023.11.13"]
[EventType "swiss"]
[EventCountry "ITA"]
[SourceTitle "playchess.com"]
[Source "ChessBase"]
[SourceQuality "1"]
[TimeControl "40/5400+30:1800+30"]

1. d4 {[%emt 0:00:05]} d5 {[%emt 0:00:04]} 2. Nf3 {[%emt 0:00:27]} Nf6 {[%emt 0:00:03]} 3. c4 {[%emt 0:00:27]} c6 {[%emt 0:00:15]} 4. Qc2 {[%emt 0:00:21]} dxc4 {[%emt 0:00:14]} 5. Qxc4 {[%emt 0:00:23]} Bf5 {[%emt 0:00:04]} 6. g3 e6 7. Bg2 Be7 8. O-O O-O 9. e3 Nbd7 10. Nbd2 Ne4 11. Nxe4 {[%emt 0:26:43]} Bxe4 {[%emt 0:13:59]} 12. b3 {[%emt 0:00:50]} c5 {[%emt 0:14:25]} 13. Bb2 {[%emt 0:04:44]} Bf6 {[%emt 0:09:42]} 14. Rac1 {[%emt 0:07:22]} Rc8 {[%emt 0:20:57]} 15. Qe2 {[%emt 0:10:03]} b6 {[%emt 0:06:37]} 16. Rfd1 {[%emt 0:08:28]} cxd4 {[%emt 0:00:26]} 17. exd4 {[%emt 0:03:45]} Bd5 {[%emt 0:03:02]} 18. Ne5 {[%emt 0:05:03]} Bxg2 {[%emt 0:08:21]} 19. Kxg2 {[%emt 0:00:12]} Qe7 {[%emt 0:01:54]} 20. Nc6 {[%emt 0:07:42]} Qd6 {[%emt 0:00:57]} 21. Nxa7 {[%emt 0:00:25]} Rxc1 {[%emt 0:04:36]} 22. Rxc1 {[%emt 0:00:39]} h6 {[%emt 0:07:48]} 23. Nb5 {[%emt 0:01:32]} Qd5+ {[%emt 0:00:48]} 24. f3 {[%emt 0:00:06]} Qa8 {[%emt 0:05:51]} 25. a4 {[%emt 0:01:28]} Rc8 {[%emt 0:00:55]} 26. Qe4 {[%emt 0:03:23]} Qb8 {[%emt 0:01:14]} 27. Rc6 {[%emt 0:00:41]} Be7 {[%emt 0:00:01]} 28. Qc2 {[%emt 0:00:56]} Rd8 {[%emt 0:00:37]} 29. Rc7 {[%emt 0:01:36]} Nf6 {[%emt 0:00:37]} 30. Qe2 {[%emt 0:06:46]} Nd5 {[%emt 0:00:11]} 31. Rc4 {[%emt 0:00:06]} Bg5 {[%emt 0:01:21]} 32. Bc1 {[%emt 0:00:21]} Bf6 {[%emt 0:00:39]} 33. Kf2 {[%emt 0:01:22]} h5 {[%emt 0:00:16]} 34. Qe4 {[%emt 0:01:42]} h4 {[%emt 0:00:35]} 35. Bf4 {[%emt 0:01:50]} Nxf4 {[%emt 0:00:41]} 36. Qxf4 {[%emt 0:00:03]} e5 {[%emt 0:00:41]} 37. Qe3 {[%emt 0:02:42]} hxg3+ {[%emt 0:00:13]} 38. hxg3 {[%emt 0:00:01]} exd4 {[%emt 0:00:30]} 39. Nxd4 {[%emt 0:00:06]} Re8 {[%emt 0:00:33]} 40. Qf4 {[%emt 0:00:00]} Be5 {[%emt 0:00:00]} 41. Qg4 {[%emt 0:10:31]} Qd6 {[%emt 0:04:11]} 42. Ne2 {[%emt 0:06:04]} Qd2 {[%emt 0:21:07]} 43. Re4 {[%emt 0:04:29]} Bd4+ {[%emt 0:01:08]} 44. Kg2 {[%emt 0:00:18]} Rxe4 {[%emt 0:00:14]} 45. Qxe4 {[%emt 0:00:30]} Be3 {[%emt 0:00:29]} 46. Qc4 {[%emt 0:01:07]} Qe1 {[%emt 0:01:10]} 47. Qc8+ {[%emt 0:00:36]} Kh7 {[%emt 0:00:35]} 48. Qh3+ {[%emt 0:02:06]} Kg8 {[%emt 0:01:01]} 49. Qc8+ {[%emt 0:00:04]} Kh7 {[%emt 0:00:04]} 1/2-1/2

[Event "FIDE WYCC Girls U18 2023"]
[Site "Montesilvano"]
[Date "2023.11.24"]
[Round "11.13"]
[White "Hakobyan, Astghik"]
[Black "Blanquet, Camille"]
[Result "1-0"]
[ECO "B10"]
[WhiteElo "2073"]
[BlackElo "1953"]
[Annotator "NA RC"]
[PlyCount "111"]
[EventDate "2023.11.13"]
[EventType "swiss"]
[EventCountry "ITA"]
[SourceTitle "playchess.com"]
[Source "ChessBase"]
[SourceQuality "1"]
[TimeControl "40/5400+30:1800+30"]

1. e4 {[%emt 0:00:05]} c6 {[%emt 0:00:04]} 2. Nf3 {[%emt 0:00:11]} d5 {[%emt 0:00:12]} 3. d3 {[%emt 0:00:06]} e6 {[%emt 0:00:28]} 4. Nbd2 {[%emt 0:01:52]} c5 {[%emt 0:01:03]} 5. g3 {[%emt 0:00:45]} Nc6 {[%emt 0:00:12]} 6. Bg2 {[%emt 0:00:09]} Nf6 {[%emt 0:00:16]} 7. O-O {[%emt 0:00:19]} Be7 {[%emt 0:00:07]} 8. Re1 {[%emt 0:01:37]} O-O {[%emt 0:00:23]} 9. e5 {[%emt 0:00:23]} Nd7 {[%emt 0:00:10]} 10. Nf1 {[%emt 0:00:36]} h6 {[%emt 0:00:56]} 11. h4 {[%emt 0:01:24]} f6 {[%emt 0:01:55]} 12. exf6 {[%emt 0:04:56]} Nxf6 {[%emt 0:00:14]} 13. Bh3 {[%emt 0:15:01]} e5 {[%emt 0:18:12]} 14. Bxc8 {[%emt 0:00:49]} Qxc8 {[%emt 0:00:27]} 15. Nxe5 {[%emt 0:00:16]} Nxe5 {[%emt 0:02:05]} 16. Rxe5 {[%emt 0:00:02]} Bd6 {[%emt 0:00:12]} 17. Re3 {[%emt 0:07:44]} Qh3 {[%emt 0:09:50]} 18. Nh2 {[%emt 0:03:24]} d4 {[%emt 0:13:38]} 19. Rf3 {[%emt 0:04:31]} Rae8 {[%emt 0:02:45]} 20. Bd2 {[%emt 0:03:02]} Rf7 {[%emt 0:02:58]} 21. c3 {[%emt 0:08:44]} Kh7 {[%emt 0:05:58]} 22. Rc1 {[%emt 0:09:45]} Rfe7 {[%emt 0:03:40]} 23. cxd4 {[%emt 0:00:55]} cxd4 {[%emt 0:00:13]} 24. Qf1 {[%emt 0:11:46]} Qe6 {[%emt 0:02:07]} 25. b3 {[%emt 0:04:05]} Qd5 {[%emt 0:03:49]} 26. Qh3 {[%emt 0:02:48]} Re2 {[%emt 0:00:39]} 27. Rd1 {[%emt 0:00:46]} Qc5 {[%emt 0:06:53]} 28. Qf5+ {[%emt 0:03:28]} Qxf5 {[%emt 0:02:26]} 29. Rxf5 {[%emt 0:00:02]} Kg6 {[%emt 0:00:22]} 30. Rb5 {[%emt 0:06:35]} b6 {[%emt 0:01:29]} 31. h5+ {[%emt 0:03:26]} Nxh5 {[%emt 0:02:42]} 32. Nf3 {[%emt 0:01:56]} Bc5 {[%emt 0:04:27]} 33. b4 {[%emt 0:00:13]} a6 {[%emt 0:00:27]} 34. bxc5 {[%emt 0:00:06]} axb5 {[%emt 0:00:04]} 35. Nxd4 {[%emt 0:01:47]} R2e7 {[%emt 0:02:19]} 36. cxb6 {[%emt 0:01:26]} Rb7 {[%emt 0:00:44]} 37. Ba5 {[%emt 0:00:44]} Ra8 {[%emt 0:02:11]} 38. Nb3 {[%emt 0:00:27]} Nf6 {[%emt 0:01:08]} 39. Rc1 {[%emt 0:01:48]} Nd7 {[%emt 0:06:00]} 40. Rc6+ {[%emt 0:00:00]} Kh7 {[%emt 0:00:00]} 41. d4 {[%emt 0:08:54]} Nf6 {[%emt 0:14:23]} 42. Rc5 {[%emt 0:06:36]} Rxa5 {[%emt 0:03:37]} 43. Nxa5 {[%emt 0:00:02]} Rxb6 {[%emt 0:00:08]} 44. f3 {[%emt 0:01:28]} b4 {[%emt 0:01:38]} 45. Kf2 {[%emt 0:02:38]} Rd6 {[%emt 0:01:29]} 46. Ke3 {[%emt 0:03:42]} Nd5+ {[%emt 0:00:47]} 47. Kd3 {[%emt 0:04:14]} Nc3 {[%emt 0:00:49]} 48. a3 {[%emt 0:01:47]} Na4 {[%emt 0:02:25]} 49. axb4 {[%emt 0:00:09]} Nxc5+ {[%emt 0:00:33]} 50. bxc5 {[%emt 0:00:01]} Rd8 {[%emt 0:00:46]} 51. Nb7 {[%emt 0:00:48]} Rc8 {[%emt 0:01:17]} 52. d5 {[%emt 0:00:21]} Rc7 {[%emt 0:05:14]} 53. c6 {[%emt 0:00:18]} Kg6 {[%emt 0:00:05]} 54. d6 {[%emt 0:00:48]} Rxc6 {[%emt 0:00:38]} 55. d7 {[%emt 0:00:04]} Rc1 {[%emt 0:00:08]} 56. Ke4 1-0

[Event "FIDE WYCC Girls U18 2023"]
[Site "Montesilvano"]
[Date "2023.11.24"]
[Round "11.14"]
[White "Sevcikova, Lucia"]
[Black "Swara Lakshmi S Nair"]
[Result "1/2-1/2"]
[ECO "D86"]
[WhiteElo "2047"]
[BlackElo "1659"]
[Annotator "NA RC"]
[PlyCount "128"]
[EventDate "2023.11.13"]
[EventType "swiss"]
[EventCountry "ITA"]
[SourceTitle "playchess.com"]
[Source "ChessBase"]
[SourceQuality "1"]
[TimeControl "40/5400+30:1800+30"]

1. d4 {[%emt 0:00:04]} Nf6 {[%emt 0:03:43]} 2. c4 {[%emt 0:00:04]} g6 {[%emt 0:00:07]} 3. Nc3 {[%emt 0:00:07]} d5 {[%emt 0:00:05]} 4. cxd5 {[%emt 0:00:03]} Nxd5 {[%emt 0:00:06]} 5. e4 {[%emt 0:00:06]} Nxc3 {[%emt 0:00:06]} 6. bxc3 {[%emt 0:00:04]} Bg7 {[%emt 0:00:16]} 7. Bc4 {[%emt 0:00:14]} c5 {[%emt 0:01:46]} 8. Ne2 {[%emt 0:00:48]} Nc6 {[%emt 0:03:00]} 9. Be3 {[%emt 0:00:28]} O-O {[%emt 0:00:09]} 10. O-O {[%emt 0:00:11]} Bg4 {[%emt 0:00:14]} 11. f3 {[%emt 0:00:33]} Bd7 {[%emt 0:00:08]} 12. Rb1 {[%emt 0:11:43]} Qc7 {[%emt 0:02:05]} 13. dxc5 {[%emt 0:10:47]} Na5 {[%emt 0:15:58]} 14. Bb5 {[%emt 0:09:00]} Rfd8 {[%emt 0:13:29]} 15. Qa4 {[%emt 0:05:53]} Be6 {[%emt 0:14:23]} 16. Nd4 {[%emt 0:11:30]} Bc8 {[%emt 0:03:37]} 17. Qb4 {[%emt 0:10:03]} e5 {[%emt 0:06:48]} 18. Nb3 {[%emt 0:04:06]} Nxb3 {[%emt 0:01:10]} 19. axb3 {[%emt 0:00:43]} Bf8 {[%emt 0:00:33]} 20. Bc4 {[%emt 0:04:59]} Bd7 {[%emt 0:12:34]} 21. Ra1 {[%emt 0:04:06]} Rdc8 {[%emt 0:02:19]} 22. Bd5 {[%emt 0:09:34]} Bc6 {[%emt 0:07:26]} 23. Rfd1 {[%emt 0:02:30]} Bxd5 {[%emt 0:00:38]} 24. Rxd5 {[%emt 0:00:17]} b6 {[%emt 0:00:05]} 25. Qb5 {[%emt 0:02:46]} Bxc5 {[%emt 0:01:06]} 26. Bxc5 {[%emt 0:00:22]} bxc5 {[%emt 0:00:13]} 27. Rd7 {[%emt 0:02:49]} Rcb8 {[%emt 0:01:51]} 28. Rxc7 {[%emt 0:03:05]} Rxb5 {[%emt 0:00:02]} 29. Ra3 {[%emt 0:00:27]} Rab8 {[%emt 0:04:12]} 30. Raxa7 {[%emt 0:01:28]} Rxb3 {[%emt 0:00:02]} 31. Rxf7 {[%emt 0:02:11]} Rb1+ {[%emt 0:00:52]} 32. Kf2 {[%emt 0:00:10]} R8b2+ {[%emt 0:00:05]} 33. Kg3 {[%emt 0:02:41]} Rg1 {[%emt 0:00:09]} 34. Rg7+ {[%emt 0:01:10]} Kf8 {[%emt 0:00:01]} 35. Rxh7 {[%emt 0:01:22]} Rgxg2+ {[%emt 0:00:45]} 36. Kh4 {[%emt 0:00:09]} Rxh2+ {[%emt 0:00:30]} 37. Kg5 {[%emt 0:00:04]} Rxh7 {[%emt 0:01:00]} 38. Rxh7 {[%emt 0:00:05]} Rf2 {[%emt 0:00:05]} 39. Rc7 {[%emt 0:00:57]} Rxf3 {[%emt 0:00:10]} 40. Rxc5 {[%emt 0:00:00]} Kf7 {[%emt 0:00:00]} 41. Rc7+ {[%emt 0:03:30]} Ke6 {[%emt 0:00:53]} 42. Rc6+ {[%emt 0:01:53]} Kf7 {[%emt 0:01:12]} 43. Rc7+ {[%emt 0:02:18]} Ke6 {[%emt 0:00:07]} 44. Kxg6 {[%emt 0:02:22]} Rg3+ {[%emt 0:00:15]} 45. Kh5 {[%emt 0:00:18]} Kd6 {[%emt 0:00:27]} 46. Rc8 {[%emt 0:00:47]} Re3 {[%emt 0:00:10]} 47. Rc4 {[%emt 0:00:48]} Rg3 {[%emt 0:00:07]} 48. Kh4 {[%emt 0:00:22]} Rg1 {[%emt 0:02:12]} 49. Kh3 {[%emt 0:01:31]} Rg8 {[%emt 0:00:34]} 50. Ra4 {[%emt 0:02:29]} Rc8 {[%emt 0:01:23]} 51. Ra6+ {[%emt 0:00:41]} Kd7 {[%emt 0:05:27]} 52. Kg4 {[%emt 0:00:32]} Rxc3 {[%emt 0:00:05]} 53. Kf5 {[%emt 0:00:14]} Rc5 {[%emt 0:00:11]} 54. Re6 {[%emt 0:01:06]} Ra5 {[%emt 0:00:35]} 55. Kf6 {[%emt 0:01:06]} Rb5 {[%emt 0:00:35]} 56. Re7+ {[%emt 0:00:41]} Kd6 {[%emt 0:00:14]} 57. Re8 {[%emt 0:00:44]} Kd7 {[%emt 0:00:24]} 58. Ra8 {[%emt 0:00:28]} Kc7 {[%emt 0:00:52]} 59. Ke6 {[%emt 0:01:23]} Rc5 {[%emt 0:00:40]} 60. Ra7+ {[%emt 0:01:47]} Kc6 {[%emt 0:00:19]} 61. Rd7 {[%emt 0:01:09]} Rc4 {[%emt 0:00:14]} 62. Rd6+ {[%emt 0:00:54]} Kc7 {[%emt 0:00:08]} 63. Kxe5 {[%emt 0:00:35]} Rxe4+ {[%emt 0:00:33]} 64. Kxe4 {[%emt 0:00:03]} Kxd6 {[%emt 0:00:05]} 1/2-1/2

[Event "FIDE WYCC Girls U18 2023"]
[Site "Montesilvano"]
[Date "2023.11.24"]
[Round "11.15"]
[White "Wisniowski, Natalie"]
[Black "Striskova, Lucia"]
[Result "1-0"]
[ECO "E71"]
[WhiteElo "1901"]
[BlackElo "2039"]
[Annotator "NA RC"]
[PlyCount "41"]
[EventDate "2023.11.13"]
[EventType "swiss"]
[EventCountry "ITA"]
[SourceTitle "playchess.com"]
[Source "ChessBase"]
[SourceQuality "1"]
[TimeControl "40/5400+30:1800+30"]

1. d4 {[%emt 0:00:02]} Nf6 {[%emt 0:00:19]} 2. c4 {[%emt 0:00:11]} g6 {[%emt 0:00:13]} 3. Nc3 {[%emt 0:00:15]} Bg7 {[%emt 0:00:09]} 4. e4 {[%emt 0:00:14]} d6 {[%emt 0:00:09]} 5. h3 {[%emt 0:00:11]} O-O {[%emt 0:02:02]} 6. Be3 {[%emt 0:00:10]} e5 {[%emt 0:01:45]} 7. d5 {[%emt 0:00:13]} a6 {[%emt 0:00:40]} 8. g4 {[%emt 0:01:19]} Nbd7 {[%emt 0:02:55]} 9. Qd2 {[%emt 0:01:02]} Nc5 {[%emt 0:03:48]} 10. f3 {[%emt 0:00:27]} Bd7 {[%emt 0:03:48]} 11. Nge2 {[%emt 0:02:57]} b5 {[%emt 0:07:01]} 12. b4 {[%emt 0:09:09]} Nb7 {[%emt 0:03:38]} 13. Ng3 {[%emt 0:01:58]} bxc4 {[%emt 0:04:19]} 14. Bxc4 {[%emt 0:00:54]} c5 {[%emt 0:04:28]} 15. dxc6 {[%emt 0:06:28]} Bxc6 {[%emt 0:00:07]} 16. h4 {[%emt 0:04:37]} Kh8 {[%emt 0:08:51]} 17. h5 {[%emt 0:02:51]} Ne8 {[%emt 0:02:22]} 18. hxg6 {[%emt 0:01:06]} fxg6 {[%emt 0:00:11]} 19. Rxh7+ {[%emt 0:00:41]} Kxh7 {[%emt 0:00:08]} 20. Qh2+ {[%emt 0:00:10]} Bh6 {[%emt 0:00:06]} 21. Qxh6# 1-0

[Event "FIDE WYCC Girls U18 2023"]
[Site "Montesilvano"]
[Date "2023.11.24"]
[Round "11.16"]
[White "Trifoi, Mihaela-Ioana"]
[Black "Groeschel, Karoline"]
[Result "1-0"]
[ECO "B40"]
[WhiteElo "2021"]
[BlackElo "1924"]
[Annotator "NA RC"]
[PlyCount "81"]
[EventDate "2023.11.13"]
[EventType "swiss"]
[EventCountry "ITA"]
[SourceTitle "playchess.com"]
[Source "ChessBase"]
[SourceQuality "1"]
[TimeControl "40/5400+30:1800+30"]

1. e4 {[%emt 0:00:04]} c5 {[%emt 0:00:02]} 2. Nf3 {[%emt 0:00:10]} e6 {[%emt 0:00:03]} 3. c3 {[%emt 0:00:07]} d5 {[%emt 0:00:03]} 4. e5 {[%emt 0:00:24]} d4 {[%emt 0:00:32]} 5. Bd3 {[%emt 0:00:06]} Bd7 {[%emt 0:00:33]} 6. Be4 {[%emt 0:16:23]} Bc6 {[%emt 0:01:59]} 7. Qe2 {[%emt 0:00:57]} Ne7 {[%emt 0:04:55]} 8. O-O {[%emt 0:01:09]} Ng6 {[%emt 0:03:51]} 9. d3 {[%emt 0:00:28]} Be7 {[%emt 0:01:59]} 10. a4 {[%emt 0:00:27]} O-O {[%emt 0:04:53]} 11. Na3 {[%emt 0:00:47]} Qd7 {[%emt 0:02:00]} 12. Nc4 {[%emt 0:05:46]} Bxa4 {[%emt 0:10:29]} 13. Rxa4 {[%emt 0:00:06]} Qxa4 {[%emt 0:00:42]} 14. Bxb7 {[%emt 0:00:04]} Nc6 {[%emt 0:03:25]} 15. Qe4 {[%emt 0:00:37]} Rac8 {[%emt 0:02:27]} 16. Bxc8 {[%emt 0:00:23]} Rxc8 {[%emt 0:00:05]} 17. cxd4 {[%emt 0:00:20]} cxd4 {[%emt 0:05:23]} 18. Nxd4 {[%emt 0:00:10]} Ngxe5 {[%emt 0:04:42]} 19. b3 {[%emt 0:03:20]} Qb4 {[%emt 0:03:18]} 20. Ba3 {[%emt 0:00:20]} Qc3 {[%emt 0:06:51]} 21. Nxe5 {[%emt 0:00:57]} f5 {[%emt 0:07:07]} 22. Qe3 {[%emt 0:17:58]} Bxa3 {[%emt 0:02:54]} 23. Nexc6 {[%emt 0:00:19]} Re8 {[%emt 0:01:39]} 24. Nxa7 {[%emt 0:05:15]} Qa5 {[%emt 0:03:59]} 25. Nac6 {[%emt 0:01:53]} Qb6 {[%emt 0:01:02]} 26. Qe5 {[%emt 0:03:34]} Bb2 {[%emt 0:01:03]} 27. b4 {[%emt 0:02:54]} Bxd4 {[%emt 0:03:18]} 28. Nxd4 {[%emt 0:00:10]} Qxb4 {[%emt 0:00:04]} 29. Nxf5 {[%emt 0:00:53]} Qg4 {[%emt 0:01:12]} 30. Re1 {[%emt 0:01:07]} Qg6 {[%emt 0:00:38]} 31. d4 {[%emt 0:00:48]} Qf6 {[%emt 0:01:10]} 32. Qxf6 {[%emt 0:01:54]} gxf6 {[%emt 0:00:06]} 33. g3 {[%emt 0:00:57]} h5 {[%emt 0:00:36]} 34. d5 {[%emt 0:00:14]} e5 {[%emt 0:00:31]} 35. Rc1 {[%emt 0:00:26]} Kh7 {[%emt 0:00:38]} 36. Rc7+ {[%emt 0:00:29]} Kg6 {[%emt 0:00:06]} 37. Ne7+ {[%emt 0:00:30]} Kf7 {[%emt 0:00:44]} 38. Nc6+ {[%emt 0:00:05]} Kg6 {[%emt 0:00:06]} 39. d6 {[%emt 0:00:06]} Re6 {[%emt 0:01:42]} 40. d7 {[%emt 0:00:00]} Rxc6 {[%emt 0:00:00]} 41. Rxc6 {[%emt 0:00:15]} 1-0